Cogmind - Beta 13 @@@ ROGUE MODE // 2024.03.08 @ 00:15:30 Player: Robotson Result: Destroyed by H-55 Commando with Gauss Rifle Performance ------------- Evolutions (2) 1000 Regions Visited (4) 800 Robots Destroyed (32) 160 Value Destroyed (708) 708 Prototype IDs (5) 100 Alien Tech Used (0) 0 Bonus (24) 24 TOTAL SCORE: 2792 Bonus ------- High Alert Combat Kills 24 Cogmind --------- Core Integrity 0/550 Matter 284/300 Energy 9/280 System Corruption 3% Temperature Cool (0) Movement Core (300) Ox5 Location -8/Materials Parts ------- > --- POWER (1) -------- Cooled Ion Engine > --- PROPULSION (3) --- (None) > --- UTILITY (5) ------ Improved Heat Sink Propulsion Shielding Improved Light Armor Plating Hardlight Generator > --- WEAPON (2) ------- (None) > --- INVENTORY (5) ---- Ion Cannon Ion Cannon Peak State ------------ > --- POWER ------------ Cooled Ion Engine > --- PROPULSION ------- Improved Hover Unit Improved Hover Unit Improved Hover Unit > --- UTILITY ---------- Small Storage Unit Visual Processing Unit Sensor Array Targeting Computer ECM Suite > --- WEAPON ----------- Gatling Laser Autogun > --- INVENTORY -------- Improved Hover Unit Improved Hover Unit Experimental Sensor Array Propulsion Shielding Light Armor Plating Assault Cannon Rocket Launcher Datajack [Rating: 23] Favorites ----------- Power Light Ion Engine Engine Light Ion Engine Propulsion Improved Hover Unit Treads Light Treads Hover Unit Improved Hover Unit Utility Small Storage Unit Device Sensor Array Storage Small Storage Unit Processor Visual Processing Unit Protection Propulsion Shielding Weapon Assault Rifle Energy Gun EM Shotgun Energy Cannon Ion Cannon Ballistic Gun Assault Rifle Ballistic Cannon Assault Cannon Launcher Grenade Launcher Special Melee Weapon Datajack Build | -11 -10 -10 -9 -8 ------- Run | Yrd Mat Min Mat Mat Slots Evolved 4 | . . . 2 2 Power . | . . . . . Propulsion 1 | . . . . 1 Utility 3 | . . . 2 1 Weapon . | . . . . . Parts Attached 55 | 6 10 2 15 22 Power 4 | 1 . . 1 2 Engine 4 | 1 . . 1 2 Core . | . . . . . Reactor . | . . . . . Propulsion 16 | 2 4 . 5 5 Treads 2 | 2 . . . . Leg . | . . . . . Wheel . | . . . . . Hover 14 | . 4 . 5 5 Flight . | . . . . . Utility 15 | 1 3 . 4 7 Device 6 | . 1 . 2 3 Storage 4 | 1 2 . 1 . Processor 2 | . . . 1 1 Hackware . | . . . . . Protection 3 | . . . . 3 Artifact . | . . . . . Weapon 20 | 2 3 2 5 8 Energy Gun 3 | . . . 1 2 Energy Cannon 2 | . . . . 2 Ballistic Gun 7 | 2 . 1 3 1 Ballistic Cannon 1 | . . . 1 . Launcher 5 | . 2 . . 3 Special Weapon . | . . . . . Impact Weapon . | . . . . . Slashing Weapon . | . . . . . Piercing Weapon . | . . . . . Special Melee Weapon 2 | . 1 1 . . Unidentified Prototypes . | . . . . . Parts Lost 14 | . . . 4 10 Power . | . . . . . Propulsion 7 | . . . 2 5 Utility 3 | . . . . 3 Weapon 4 | . . . 2 2 Highest Loss Streak 4 | . . . 3 4 To Critical Strikes . | . . . . . Average Slot Usage (%) 94 | . 96 100 99 71 Engine 11 | . 14 14 11 7 Treads 3 | . 11 . . . Hover 20 | . 16 28 22 18 Device 15 | . 8 14 22 11 Storage 11 | . 16 14 11 5 Processor 7 | . . . 11 11 Energy Gun 1 | . 1 . 1 4 Ballistic Gun 12 | . 19 12 11 4 Ballistic Cannon 3 | . . . 7 1 Launcher 3 | . 5 14 2 1 Naked Turns 25 | . . . . 25 Heaviest Build 25 | 12 19 19 24 25 Greatest Support 40 | 40 40 12 14 21 Greatest Overweight (x) 4 | 3 1 1 1 4 Average Overweight (x) . | . . 1 . . Largest Inventory Capacity 10 | 8 10 10 10 8 Average Capacity 8 | 7 8 10 8 6 Most Carried 10 | 6 8 10 8 8 Average Carried 7 | 3 7 8 7 5 Final Capacity 10 | 8 10 10 8 5 Final Carried 9 | 6 8 9 8 2 Class Distribution -------------------- 100% | Mutant Dominant Class ---------------- Mutant | -10/Materials Mutant | -10/Mines Mutant | -9/Materials Mutant | -8/Materials Resources | -11 -10 -10 -9 -8 ----------- Run | Yrd Mat Min Mat Mat Matter Collected 1145 | 211 330 . 227 377 Remotely . | . . . . . Salvage Created 699 | . 162 . 291 246 Parts 66 | . 26 . 24 16 Haulers Intercepted 2 | . 1 . 1 . Recyclers Shooed 1 | . . . 1 . Parts Field Recycled . | . . . . . Retrieved Matter . | . . . . . Parts Self-Destructed . | . . . . . Prevented . | . . . . . Kills | -11 -10 -10 -9 -8 ------- Run | Yrd Mat Min Mat Mat Combat Hostiles Destroyed 23 | . 7 . 6 10 Guns 5 | . 2 . . 3 Cannons 5 | . . . 3 2 AOE 12 | . 5 . 3 4 Classes Destroyed 11 | . 5 . 4 2 Worker 1 | . . . 1 . Builder 2 | . 1 . 1 . Tunneler 1 | . . . 1 . Hauler 2 | . 1 . 1 . Watcher 3 | . 1 . 2 . Swarmer 10 | . 6 . . 4 Cutter 2 | . . . . 2 Grunt 6 | . 1 . 4 1 Duelist 1 | . . . 1 . Sentry 3 | . . . 1 2 Hunter 1 | . . . . 1 Best Kill Streak 4 | . 4 . 3 4 Combat Bots Only 4 | . 3 . 3 4 Max Kills in Single Turn 3 | . 3 . 3 3 Gunslinging . | . . . . . Exploded 3 | . 2 . 3 2 Melee . | . . . . . Uniques/NPCs Destroyed . | . . . . . Combat | -11 -10 -10 -9 -8 -------- Run | Yrd Mat Min Mat Mat Hostile Shots Fired 234 | . 12 . 56 166 Missed 80 | . 6 . 21 53 Damage Taken 2431 | . 114 . 792 1525 Core 761 | . 28 . 175 558 Absorbed by Shields 228 | . . . . 228 Redirected to Shielding 31 | . . . . 31 Regen/Repaired (Parts) 50 | . 17 . 22 11 Core Remaining (%) 81 | 100 . 88 56 . Volleys Fired 64 | . 14 . 33 17 Largest 2 | . 2 . 2 2 Hottest 143 | . 50 . 68 143 Shots Fired 118 | . 22 . 65 31 Gun 66 | . 18 . 36 12 Cannon 38 | . . . 23 15 Launcher 14 | . 4 . 6 4 Special . | . . . . . Kinetic 81 | . 18 . 56 7 Thermal 20 | . . . . 20 Explosive 14 | . 4 . 6 4 Electromagnetic 3 | . . . 3 . Robot Hit Streak 8 | . 4 . 7 8 Robot Miss Streak 3 | . 3 . 3 3 Penetration Max . | . . . . . Secondary Targets . | . . . . . Shots Hit Robots 71 | . 17 3 33 18 Core Hits 40 | . 12 . 15 13 Critical Kills 1 | . . . . 1 Critical Parts Destroyed . | . . . . . Critical Strikes 2 | . . . 1 1 Meltdown 1 | . . . . 1 Blast 1 | . . . 1 . Melee Attacks 11 | . 8 3 . . Impact . | . . . . . Slashing . | . . . . . Piercing . | . . . . . Sneak Attacks 9 | . 8 1 . . Combat Hostiles . | . . . . . Follow-up Attacks . | . . . . . Damage Inflicted 1766 | . 348 . 808 610 Guns 472 | . 106 . 248 118 Cannons 545 | . . . 295 250 Explosions 692 | . 242 . 264 186 Melee . | . . . . . Ramming 57 | . . . 1 56 Kinetic 638 | . 106 . 501 31 Thermal 397 | . . . 60 337 Explosive 632 | . 242 . 204 186 Electromagnetic 42 | . . . 42 . Impact . | . . . . . Slashing . | . . . . . Piercing . | . . . . . Highest Corruption 3 | . . . . 3 Average Corruption 3 | . . . . 3 Corruption Purged . | . . . . . Corruption Blocked . | . . . . . Effects 4 | . . . . 4 Message Errors 2 | . . . . 2 Heat Flow Errors 2 | . . . . 2 Overload Shots . | . . . . . Overflow Damage 106 | . . . 99 7 Projectiles . | . . . . . Explosions 106 | . . . 99 7 Melee . | . . . . . Knockbacks 3 | . . . 3 . Impact . | . . . . . Kinetic 3 | . . . 3 . Secondary . | . . . . . Self-Inflicted Damage 359 | . 62 . 247 50 Shots 9 | . 2 . 6 1 Rammed 16 | . . . 1 15 Targets Rammed 16 | . . . 1 15 Kicked . | . . . . . Crushed . | . . . . . Highest Temperature 142 | . . . 40 142 Average Temperature 24 | . . . 12 38 Received Heat Transfer 433 | . . . 213 220 Siege Activations . | . . . . . Robots Corrupted . | . . . . . Combat Hostiles . | . . . . . Parts Fried . | . . . . . Impact Corruptions . | . . . . . Robots Melted 1 | . . . . 1 Combat Hostiles 1 | . . . . 1 Parts Melted 2 | . . . . 2 Heat Transferred 657 | . . . 50 607 Parts Sabotaged . | . . . . . Parts Stolen . | . . . . . Parts Stripped . | . . . . . Power Chain Reactions 1 | . . . 1 . Alert | -11 -10 -10 -9 -8 ------- Run | Yrd Mat Min Mat Mat Peak Influence 466 | . 121 46 206 466 Initial 46 | . . 46 17 27 Average 68 | . 43 46 52 184 Maximum Alert Level 2 | . . . 1 2 Low Security (%) 92 | 100 100 100 94 67 Level 1 5 | . . . 5 20 Level 2 1 | . . . . 11 Level 3 . | . . . . . Level 4 . | . . . . . Level 5 . | . . . . . High Security . | . . . . . Max Security . | . . . . . Squads Dispatched 6 | . 1 . 2 3 Investigation 3 | . 1 . 1 1 Extermination . | . . . . . Reinforcement 3 | . . . 1 2 Assault . | . . . . . Garrison . | . . . . . Intercept . | . . . . . Searches Triggered . | . . . . . Construction Impeded . | . . . . . Haulers Reinforced . | . . . . . Active Scanning Responses . | . . . . . Cargo Convoy Interrupts . | . . . . . Stealth | -11 -10 -10 -9 -8 --------- Run | Yrd Mat Min Mat Mat Distress Signals 4 | . . . 1 3 Communications Jammed . | . . . . . Distress Signals . | . . . . . Times Spotted 47 | . 9 . 15 23 Peak Tracking Total 10 | . 3 . 3 10 Tactical Retreats 11 | . . . 5 6 Traps | -11 -10 -10 -9 -8 ------- Run | Yrd Mat Min Mat Mat Traps Triggered 3 | . . . 1 2 Indirectly . | . . . . . Trap Hack Attempts . | . . . . . Triggered . | . . . . . Disarmed . | . . . . . Reprogrammed . | . . . . . Reused . | . . . . . Traps Extracted . | . . . . . Installed . | . . . . . Triggered . | . . . . . Machines | -11 -10 -10 -9 -8 ---------- Run | Yrd Mat Min Mat Mat Machines Disabled 5 | . . . 2 3 Max in Single Turn 2 | . . . 2 1 Machines Repaired . | . . . . . Machines Dismantled . | . . . . . Machines Sabotaged . | . . . . . Overloaded Fab Kills . | . . . . . Hacking | -11 -10 -10 -9 -8 --------- Run | Yrd Mat Min Mat Mat Machines Accessed 16 | . 8 . 4 4 Terminals 9 | . 5 . 2 2 Fabricators . | . . . . . Repair Stations 3 | . 1 . 1 1 Recycling Units 3 | . 2 . . 1 Scanalyzers 1 | . . . 1 . Garrison Access . | . . . . . Total Hacks 56 | . 22 . 22 12 Successful 34 | . 12 . 16 6 Failed 22 | . 10 . 6 6 Catastrophic 6 | . 3 . 2 1 Database Lockouts . | . . . . . Manual . | . . . . . Terminals 32 | . 14 . 12 6 Fabricators . | . . . . . Repair Stations 8 | . 3 . 2 3 Recycling Units 8 | . 5 . . 3 Scanalyzers 8 | . . . 8 . Garrison Access . | . . . . . Terminal Hacks 15 | . 5 . 8 2 Record 1 | . . . 1 . Prototype ID Bank 2 | . 2 . . . Emergency Access Points 2 | . 2 . . . Locate Traps 1 | . . . . 1 Maintenance Status 1 | . . . . 1 Security Status 1 | . . . 1 . Surveillance Status 1 | . . . 1 . Patrol Status 1 | . . . 1 . Reinforcement Status 1 | . 1 . . . Assault Status 1 | . . . 1 . Hauler Manifests 1 | . . . 1 . Zone Layout 2 | . . . 2 . Fabricator Hacks . | . . . . . Repair Station Hacks 7 | . 3 . 2 2 Scan Component 3 | . 1 . 1 1 Repair 3 | . 1 . 1 1 Refit 1 | . 1 . . . Recycling Unit Hacks 6 | . 4 . . 2 Process 2 | . 1 . . 1 Report Inventory 2 | . 1 . . 1 Retrieve Matter 1 | . 1 . . . Retrieve Components 1 | . 1 . . . Scanalyzer 6 | . . . 6 . Insert Component 3 | . . . 3 . Analyze 3 | . . . 3 . Garrison Access Hacks . | . . . . . Unauthorized Hacks . | . . . . . Terminals . | . . . . . Fabricators . | . . . . . Repair Stations . | . . . . . Recycling Units . | . . . . . Scanalyzers . | . . . . . Garrison Access . | . . . . . Data Cores Recovered . | . . . . . Used . | . . . . . Hacking Detections 15 | . 8 . 4 3 Full Trace Events 3 | . 1 . 1 1 Feedback Events . | . . . . . Feedback Blocked . | . . . . . Robot Schematics Acquired . | . . . . . Robots Built . | . . . . . Authchips . | . . . . . Time . | . . . . . Total Robot Build Rating . | . . . . . Part Schematics Acquired 1 | . . . 1 . Parts Built . | . . . . . Authchips . | . . . . . Time . | . . . . . Total Part Build Rating . | . . . . . Parts Repaired 3 | . 1 . 1 1 Time 188 | . 26 . 26 136 Parts Recycled . | . . . . . Recycled Matter 1 | . . . . 1 Retrieved Matter . | . . . . . Retrieved Components 3 | . 3 . . . Parts Scanalyzed 3 | . . . 3 . Part Schematics Acquired 1 | . . . 1 . Parts Damaged 1 | . . . 1 . Bothacking | -11 -10 -10 -9 -8 ------------ Run | Yrd Mat Min Mat Mat Used RIF Installer . | . . . . . Robots Hacked 5 | . 4 1 . . Non-combat 5 | . 4 1 . . Combat . | . . . . . Robot Hacks Applied 8 | . 7 1 . . parse_system 4 | . 4 . . . no_distress 4 | . 3 1 . . Relay Couplers Released . | . . . . . Fabnet Peak Effective % . | . . . . . Robots Rewired . | . . . . . Allies Hacked . | . . . . . Hacks Repelled . | . . . . . Allies | -11 -10 -10 -9 -8 -------- Run | Yrd Mat Min Mat Mat Total Allies . | . . . . . Largest Group . | . . . . . Highest-Rated Group . | . . . . . Highest-Rated Ally . | . . . . . Total Orders . | . . . . . Ally Attacks . | . . . . . Total Damage . | . . . . . Kills . | . . . . . Allies Corrupted . | . . . . . Allies Melted . | . . . . . Intel | -11 -10 -10 -9 -8 ------- Run | Yrd Mat Min Mat Mat Robot Analysis Total . | . . . . . Derelict Logs Recovered . | . . . . . Drone Launches . | . . . . . Drone Recoveries . | . . . . . Exploration | -11 -10 -10 -9 -8 ------------- Run | Yrd Mat Min Mat Mat Turns Passed 2551 | 86 702 214 1152 397 Spaces Moved 1912 | 47 547 174 841 303 Core 84 | 6 . . . 78 Treads 195 | 41 154 . . . Legs . | . . . . . Wheels . | . . . . . Hover 1633 | . 393 174 841 225 Flight . | . . . . . Fastest Speed 50 | 50 56 116 56 50 Average Speed 107 | 152 108 116 111 83 Slowest Speed 250 | 200 160 116 116 250 Overloaded Moves . | . . . . . Propulsion Burnouts . | . . . . . Robots Hopped . | . . . . . Cave-ins Triggered . | . . . . . Exploration Rate (%) 37 | 4 68 37 40 36 Regions Visited 4 Branch Regions 1 Pre-discovered Areas . | . . . . . Known Exits Taken . | . . . . . Unknown Exits Taken 4 | 1 1 1 1 . Scrap Searched 1 | . . 1 . . Spaces Dug 24 | . . . 24 . Terrain Destroyed 149 | . 21 . 98 30 Melee . | . . . . . Projectile 6 | . . . 5 1 AOE 143 | . 21 . 93 29 Terrain Rammed . | . . . . . Walls Destroyed . | . . . . . Machines Disabled . | . . . . . Actions | -11 -10 -10 -9 -8 --------- Run | Yrd Mat Min Mat Mat Total 2295 | 59 636 185 996 419 Wait 154 | 1 19 4 88 42 Move 1908 | 46 546 173 840 303 Hop . | . . . . . Pick Up 36 | 6 16 1 8 5 Fast Attach 25 | 6 4 . 4 11 Attach 24 | . 4 2 7 11 Detach 13 | . 3 2 1 7 Swap 6 | . 2 . 4 . Drop 38 | . 20 . 10 8 Fire 64 | . 14 . 33 17 Melee 11 | . 8 3 . . Ram 16 | . . . 1 15 Kick . | . . . . . Crush . | . . . . . Escape Stasis . | . . . . . Rewire . | . . . . . Trap . | . . . . . Miscellaneous . | . . . . . Route ------- -11/Scrapyard -10/Materials (discovered 3 exits: *Mat x2 / [*Min]) -10/Mines (discovered 3 exits: *Mat x2 / [*Exi]) -9/Materials -8/Materials History --------- Turn | Location | Event 21 | -11/Scrapyard | Discovered new exit (range 15) 87 | -11/Scrapyard | Entered Materials 303 | -10/Materials | Build established: Mutant 394 | -10/Materials | Discovered new exit (range 16) 530 | -10/Materials | Repaired Hover Unit 545 | -10/Materials | Discovered new exit (range 12) 625 | -10/Materials | Discovered new exit (range 13) 789 | -10/Materials | Entered Mines 807 | -10/Mines | Found a damaged Exp. Sensor Array with a note attached 809 | -10/Mines | Found Prototype Device 866 | -10/Mines | Discovered new exit (range 9) 876 | -10/Mines | Deemed a non-threat by the Exiles lab entrance 876 | -10/Mines | Discovered new exit (range 5) 963 | -10/Mines | Discovered new exit (range 15) 986 | -10/Mines | Assembled infested the area 991 | -10/Mines | Assisted by a Guerilla fighting off Assembled 1003 | -10/Mines | Entered Materials 1003 | -9/Materials | Evolved 2 slots: Utility x2 1040 | -9/Materials | Repaired Hover Unit? 1373 | -9/Materials | Lost 3 parts (1n2w) 1606 | -9/Materials | Discovered new exit (range 5) 1687 | -9/Materials | Identified Exp. Sensor Array 2155 | -9/Materials | Entered another Materials area 2155 | -8/Materials | Evolved 2 slots: Propulsion x1, Utility x1 2406 | -8/Materials | Lost 3 parts (3n) 2416 | -8/Materials | Core integrity fell below 50% 2442 | -8/Materials | Repaired Broken Exp. Sensor Array? 2501 | -8/Materials | Core integrity fell below 20% 2552 | -8/Materials | Destroyed by H-55 Commando with Gauss Rifle Last Messages --------------- 02521_ Penetrated by Slug. 02523_ Acquired Ion Cannon. 02524_ AFNSELDIZA/SO>9G XL11:P7GQYHP 02542_ K-01 Serf collects debris. 02543_ Penetrated by Slug. 02545_ System corrupted: FCS attempts to trigger Ion Cannon. 02546_ Penetrated by Slug. 02547_ K-01 Serf collects debris. 02549_ Slug penetrates Atomic Centrifuge. 02550_ K-01 Serf collects debris. 02550_ Acquired 52 matter. 02551_ Imp. Hover Unit destroyed. Map ----- +----------------------------------------------------+ | ??????????????????????????????????????????? | | ??????????????????????????????????????????? | | ??????????????????????????????????????????? | | ??????????????????????????????????????????? | | ??????????????????????????????????????????? | | ??????????????????????????????????????????? | | ??????????????????????????????????????????? | | ????????????????????? ??????????????????? | | ????????????????????# ??????????????????? | | ????????????????????# ??????????????????? | | ????????????????????# ??????????????????? | | ????????????????????# #?????????????????? | | ????????????????????# #?????????????????? | | ????????????????????# #?????????????????? | | ????????????????????/ ##########????????? | | ????????????????????# # %#????????? | | ????????????????????# # """"" #????????? | | ????????????????????# # """"" #????????? | | ?????????############ # " """ #????????? | | ?????????# # #????????? | | ?????????# # """"" #????????? | | ?????????# """ """ ; """"" #????????? | | ########## """ "" # """"" #????????? | | # # "" t # ##+#?????? | | #""" # r ########/## #?????? | | #""" # @ #?????# #?##### | | #""" # h * k #?????# #?# | | # ; ! #?????# ### | | # "" # !=g ! #?????+ | | # "" # =%%=!! #?????# ###### | | # S"# [#############?????# #????# | | # # #?????????????????# #????##### | | ########## #?????????????????# #????????? | | ?????????# #????????????????? ?????????? | | ?????????# #????????????????? ?????????? | | ?????????# #?????????????????# ?????????? | | ?????????# +?????????????????# ?????????? | | ?????????# #????????????????? ?????????? | | ?????????# #????????????????? ?????????? | | ?????????# #????????????????? ?????????? | | ?????????# #????????????????? ??????????? | | ?????????# #????????????????????????????? | | ?????????# ?????????????????????????????? | | ??????????????????????????????????????????? | | ??????????????????????????????????????????? | | ??????????????????????????????????????????? | | ??????????????????????????????????????????? | | ??????????????????????????????????????????? | | ??????????????????????????????????????????? | | ??????????????????????????????????????????? | +----------------------------------------------------+ Best States ------------- Heat Dissipation 45 Energy Generation 14 Energy Capacity 280 Matter Stores 366 Matter Capacity 450 Sight Range 18 Robot Scan Range 14 Terrain Scan Density 10 ECM Strength 1 Armor Coverage 150 Propulsion Shielding 33 Evasion (%) 54 Targeting Accuracy 5 Recoil Reduction 2 Item Schematics ----------------- ECM Suite | -9/Materials | Scanalyzed Robot Schematics ------------------ None Fabricated ------------ Nothing Alien Tech Used ----------------- None Achievements -------------- None Challenges ------------ None Game ------ Seed UltimateFortressMatter Manual? 0 Play Time 01:04:27 Cumulative 33.7 hours Start 2024.03.02 @ 22:21:38 End 2024.03.08 @ 00:15:30 Sessions 3 Manual Loads 0 Difficulty Rogue Special Mode None Game No. 19 Rogue 19 Adventurer 0 Explorer 0 Win Type - Total 0 Types 0/0/0/0/0/0/0/0/0 Lore% 15 Gallery% 27 Achievement% 22 Wizard Run 0 Options --------- Layout 1 ASCII 1 Keyboard 1 Movement Numpad Keybinds 0 Fullscreen 1 Font 16/SmallcapsGlow Map View 55x38 Zoom Use 0% Tactical HUD 1 Map Filters NONE Filters NONE Steam 1 RUN: e8424b36-c474-4ceb-998a-74b463d1ad1f